[Event "RUS-chT Rapid Men 2018"]
[Site "Sochi"]
[Date "2018.10.08"]
[Round "4"]
[White "Kostin, Alexey"]
[Black "Rozhko, Dmitry"]
[Result "1-0"]
[ECO "C00"]
[WhiteElo "2253"]
[BlackElo "2305"]
[Annotator "NA"]
[PlyCount "101"]
[EventDate "2018.10.05"]
[EventType "swiss"]
[EventCountry "RUS"]
[SourceTitle "playchess.com"]
[Source "ChessBase"]
[SourceQuality "1"]
[TimeControl "900+10"]

1. e4 {[%emt 0:00:00]} e6 {[%emt 0:00:00]} 2. d3 {[%emt 0:00:00]} d5 {[%emt 0:00:00]} 3. Nd2 {[%emt 0:00:00]} Nf6 {[%emt 0:00:00]} 4. Ngf3 {[%emt 0:00:00]} dxe4 {[%emt 0:00:03]} 5. dxe4 {[%emt 0:00:01]} b6 {[%emt 0:00:01]} 6. Bb5+ {[%emt 0:00:13]} c6 {[%emt 0:00:09]} 7. Be2 {[%emt 0:00:04]} Be7 {[%emt 0:00:11]} 8. O-O {[%emt 0:00:07]} O-O {[%emt 0:00:01]} 9. e5 {[%emt 0:00:21]} Nd5 {[%emt 0:00:25]} 10. Ne4 {[%emt 0:00:08]} Ba6 {[%emt 0:00:38]} 11. c4 {[%emt 0:00:13]} Nc7 {[%emt 0:00:37]} 12. Qc2 {[%emt 0:00:07]} Nd7 {[%emt 0:01:20]} 13. Rd1 {[%emt 0:00:37]} Qc8 {[%emt 0:01:24]} 14. Bg5 {[%emt 0:00:11]} f6 {[%emt 0:00:47]} 15. Bh4 {[%emt 0:00:19]} Qe8 {[%emt 0:01:05]} 16. Nd6 {[%emt 0:00:38]} Qg6 {[%emt 0:00:24]} 17. Bd3 {[%emt 0:00:17]} Qh6 {[%emt 0:00:12]} 18. Be4 {[%emt 0:00:10]} Nxe5 {[%emt 0:00:59]} 19. Nxe5 {[%emt 0:00:13]} Qxh4 {[%emt 0:00:06]} 20. Nxc6 {[%emt 0:00:53]} Bxd6 {[%emt 0:00:25]} 21. Rxd6 {[%emt 0:00:05]} f5 {[%emt 0:00:07]} 22. Bf3 {[%emt 0:00:30]} Qxc4 {[%emt 0:00:57]} 23. Qxc4 {[%emt 0:00:46]} Bxc4 {[%emt 0:00:01]} 24. Ne7+ {[%emt 0:00:06]} Kf7 {[%emt 0:00:28]} 25. Bxa8 {[%emt 0:01:52]} Kxe7 {[%emt 0:00:38]} 26. Rc6 {[%emt 0:00:03]} Nd5 {[%emt 0:00:14]} 27. Rxc4 {[%emt 0:00:22]} Rxa8 {[%emt 0:00:01]} 28. f4 {[%emt 0:00:21]} h6 {[%emt 0:00:18]} 29. Kf2 {[%emt 0:00:14]} g5 {[%emt 0:00:01]} 30. g3 {[%emt 0:00:03]} Kd6 {[%emt 0:00:06]} 31. Re1 {[%emt 0:00:25]} b5 {[%emt 0:00:13]} 32. Rd4 {[%emt 0:00:09]} Rc8 {[%emt 0:00:10]} 33. a4 {[%emt 0:00:18]} b4 {[%emt 0:00:15]} 34. Rd2 {[%emt 0:00:38]} gxf4 {[%emt 0:00:19]} 35. gxf4 {[%emt 0:00:02]} Rc4 {[%emt 0:00:08]} 36. Kg3 {[%emt 0:00:24]} b3 {[%emt 0:00:20]} 37. a5 {[%emt 0:00:28]} Ra4 {[%emt 0:00:24]} 38. Re3 {[%emt 0:00:08]} Rxa5 {[%emt 0:00:09]} 39. Rxb3 {[%emt 0:00:08]} Ra4 {[%emt 0:00:10]} 40. Rb7 {[%emt 0:01:18]} Kc6 {[%emt 0:00:20]} 41. Rh7 {[%emt 0:00:04]} Nxf4 {[%emt 0:00:17]} 42. Rxh6 {[%emt 0:00:07]} Re4 {[%emt 0:00:03]} 43. h4 {[%emt 0:01:14]} Nd5 {[%emt 0:00:43]} 44. h5 {[%emt 0:00:30]} Rg4+ {[%emt 0:00:07]} 45. Kf2 {[%emt 0:00:41]} Rf4+ {[%emt 0:00:08]} 46. Ke1 {[%emt 0:00:07]} Kd6 {[%emt 0:00:28]} 47. Re2 {[%emt 0:00:18]} Nc7 {[%emt 0:00:11]} 48. Rh8 {[%emt 0:00:32]} Rh4 {[%emt 0:00:04]} 49. h6 {[%emt 0:00:11]} Ke7 {[%emt 0:02:29]} 50. h7 {[%emt 0:00:14]} Ne8 {[%emt 0:01:13]} 51. Rxe6+ {[%emt 0:00:05]} 1-0

[Event "RUS-chT Rapid Men 2018"]
[Site "Sochi"]
[Date "2018.10.08"]
[Round "4"]
[White "Shkurkin, Andrey"]
[Black "Dilmukhametov, Artur"]
[Result "1/2-1/2"]
[ECO "D10"]
[WhiteElo "2201"]
[BlackElo "2353"]
[Annotator "NA"]
[PlyCount "61"]
[EventDate "2018.10.05"]
[EventType "swiss"]
[EventCountry "RUS"]
[SourceTitle "playchess.com"]
[Source "ChessBase"]
[SourceQuality "1"]
[TimeControl "900+10"]

1. d4 {[%emt 0:00:00]} d5 {[%emt 0:00:00]} 2. c4 {[%emt 0:00:00]} c6 {[%emt 0:00:00]} 3. cxd5 {[%emt 0:00:04]} cxd5 {[%emt 0:00:00]} 4. Bf4 {[%emt 0:00:04]} Nc6 {[%emt 0:00:01]} 5. e3 {[%emt 0:00:01]} Nf6 {[%emt 0:00:03]} 6. Nc3 {[%emt 0:00:03]} e6 {[%emt 0:00:12]} 7. Bd3 {[%emt 0:00:12]} Be7 {[%emt 0:00:06]} 8. Rc1 {[%emt 0:00:35]} Bd7 {[%emt 0:00:09]} 9. h3 {[%emt 0:00:20]} Rc8 {[%emt 0:00:22]} 10. Nf3 {[%emt 0:00:18]} O-O {[%emt 0:01:20]} 11. O-O {[%emt 0:00:07]} Na5 {[%emt 0:00:11]} 12. Ne5 {[%emt 0:01:24]} Nc4 {[%emt 0:00:24]} 13. Qe2 {[%emt 0:00:50]} Nxe5 {[%emt 0:03:06]} 14. dxe5 {[%emt 0:02:36]} Ne8 {[%emt 0:00:08]} 15. Nb5 {[%emt 0:02:20]} Bxb5 {[%emt 0:01:31]} 16. Bxb5 {[%emt 0:00:10]} Nc7 {[%emt 0:00:57]} 17. Bd3 {[%emt 0:00:14]} Na8 {[%emt 0:00:02]} 18. e4 {[%emt 0:03:23]} Rxc1 {[%emt 0:00:56]} 19. Rxc1 {[%emt 0:00:06]} Nb6 {[%emt 0:00:22]} 20. Qc2 {[%emt 0:00:38]} Bg5 {[%emt 0:01:08]} 21. Bxg5 {[%emt 0:01:46]} Qxg5 {[%emt 0:00:02]} 22. exd5 {[%emt 0:00:12]} Nxd5 {[%emt 0:00:07]} 23. Bxh7+ {[%emt 0:00:18]} Kh8 {[%emt 0:00:01]} 24. Be4 {[%emt 0:01:08]} Nf4 {[%emt 0:01:57]} 25. Kh1 {[%emt 0:00:22]} Qxe5 {[%emt 0:01:36]} 26. Bxb7 {[%emt 0:00:26]} Rd8 {[%emt 0:01:30]} 27. Qc7 {[%emt 0:01:20]} Qg5 {[%emt 0:00:02]} 28. Qxd8+ {[%emt 0:00:11]} Qxd8 {[%emt 0:00:01]} 29. Rc8 {[%emt 0:00:02]} Qxc8 {[%emt 0:00:01]} 30. Bxc8 {[%emt 0:00:01]} Nd3 {[%emt 0:00:01]} 31. Kg1 {[%emt 0:00:46]} 1/2-1/2

[Event "RUS-chT Rapid Men 2018"]
[Site "Sochi"]
[Date "2018.10.08"]
[Round "4"]
[White "Pervakov, Sergey"]
[Black "Terzyan, Nazar"]
[Result "1/2-1/2"]
[ECO "B20"]
[WhiteElo "2098"]
[BlackElo "1757"]
[Annotator "NA"]
[PlyCount "89"]
[EventDate "2018.10.05"]
[EventType "swiss"]
[EventCountry "RUS"]
[SourceTitle "playchess.com"]
[Source "ChessBase"]
[SourceQuality "1"]
[TimeControl "900+10"]

1. e4 {[%emt 0:00:00]} c5 {[%emt 0:00:00]} 2. a3 {[%emt 0:00:00]} e6 {[%emt 0:00:00]} 3. b4 {[%emt 0:00:00]} d5 {[%emt 0:00:02]} 4. exd5 {[%emt 0:00:29]} Qxd5 {[%emt 0:00:02]} 5. Nc3 {[%emt 0:00:34]} Qd8 {[%emt 0:00:45]} 6. bxc5 {[%emt 0:01:59]} Bxc5 {[%emt 0:00:19]} 7. Nf3 {[%emt 0:00:11]} Nc6 {[%emt 0:00:00]} 8. Ne4 {[%emt 0:01:31]} Be7 {[%emt 0:00:10]} 9. Bb2 {[%emt 0:00:19]} Nf6 {[%emt 0:00:05]} 10. Bd3 {[%emt 0:01:25]} O-O {[%emt 0:00:23]} 11. Qe2 {[%emt 0:00:06]} Nd5 {[%emt 0:00:40]} 12. g3 {[%emt 0:03:15]} b6 {[%emt 0:00:08]} 13. O-O {[%emt 0:00:27]} Bb7 {[%emt 0:00:02]} 14. Ba6 {[%emt 0:00:18]} Bxa6 {[%emt 0:00:17]} 15. Qxa6 {[%emt 0:00:02]} Nf6 {[%emt 0:00:08]} 16. Qe2 {[%emt 0:00:29]} Rc8 {[%emt 0:00:09]} 17. d3 {[%emt 0:00:46]} Nxe4 {[%emt 0:00:29]} 18. Qxe4 {[%emt 0:00:31]} Bf6 {[%emt 0:00:04]} 19. Bxf6 {[%emt 0:00:55]} Qxf6 {[%emt 0:00:04]} 20. Rfe1 {[%emt 0:01:39]} Rfd8 {[%emt 0:00:14]} 21. Rab1 {[%emt 0:00:13]} h6 {[%emt 0:00:06]} 22. Kg2 {[%emt 0:00:23]} Nd4 {[%emt 0:00:06]} 23. Nxd4 {[%emt 0:00:28]} Qxd4 {[%emt 0:00:02]} 24. Qxd4 {[%emt 0:00:54]} Rxd4 {[%emt 0:00:02]} 25. Rb2 {[%emt 0:00:23]} Rc3 {[%emt 0:01:01]} 26. Ra2 {[%emt 0:00:02]} Ra4 {[%emt 0:00:07]} 27. Rea1 {[%emt 0:00:34]} Ra5 {[%emt 0:00:03]} 28. a4 {[%emt 0:00:31]} Rac5 {[%emt 0:00:58]} 29. a5 {[%emt 0:00:03]} Rxc2 {[%emt 0:00:02]} 30. axb6 {[%emt 0:00:41]} Rxa2 {[%emt 0:00:02]} 31. Rxa2 {[%emt 0:00:11]} axb6 {[%emt 0:00:02]} 32. Kf3 {[%emt 0:00:00]} g6 {[%emt 0:00:11]} 33. Ke3 {[%emt 0:00:10]} Kg7 {[%emt 0:00:02]} 34. Rb2 {[%emt 0:00:17]} b5 {[%emt 0:00:03]} 35. d4 {[%emt 0:00:33]} Rd5 {[%emt 0:00:24]} 36. f4 {[%emt 0:00:06]} g5 {[%emt 0:00:15]} 37. fxg5 {[%emt 0:00:21]} hxg5 {[%emt 0:00:05]} 38. g4 {[%emt 0:00:05]} Kf6 {[%emt 0:00:03]} 39. Ke4 {[%emt 0:00:03]} Kg6 {[%emt 0:00:10]} 40. Rb3 {[%emt 0:00:07]} f5+ {[%emt 0:00:30]} 41. gxf5+ {[%emt 0:00:04]} Rxf5 {[%emt 0:00:02]} 42. Rb2 {[%emt 0:00:25]} Kf6 {[%emt 0:00:04]} 43. h3 {[%emt 0:00:25]} Rf4+ {[%emt 0:00:12]} 44. Ke3 {[%emt 0:00:04]} Rf5 {[%emt 0:00:40]} 45. Ke4 1/2-1/2

[Event "RUS-chT Rapid Men 2018"]
[Site "Sochi"]
[Date "2018.10.08"]
[Round "4"]
[White "Grigoriants, Boris"]
[Black "Chos, Alexey"]
[Result "0-1"]
[ECO "B53"]
[WhiteElo "1914"]
[BlackElo "2296"]
[Annotator "NA"]
[PlyCount "90"]
[EventDate "2018.10.05"]
[EventType "swiss"]
[EventCountry "RUS"]
[SourceTitle "playchess.com"]
[Source "ChessBase"]
[SourceQuality "1"]
[TimeControl "900+10"]

1. e4 {[%emt 0:00:00]} c5 {[%emt 0:00:00]} 2. Nf3 {[%emt 0:00:00]} d6 {[%emt 0:00:00]} 3. d4 {[%emt 0:00:00]} cxd4 {[%emt 0:00:00]} 4. Qxd4 {[%emt 0:00:00]} Bd7 {[%emt 0:00:00]} 5. c4 {[%emt 0:00:32]} Nc6 {[%emt 0:00:02]} 6. Qd2 {[%emt 0:00:01]} Nf6 {[%emt 0:00:02]} 7. Nc3 {[%emt 0:00:08]} e6 {[%emt 0:00:05]} 8. g3 {[%emt 0:00:27]} Be7 {[%emt 0:00:09]} 9. Bg2 {[%emt 0:00:01]} Rc8 {[%emt 0:00:02]} 10. b3 {[%emt 0:00:09]} a6 {[%emt 0:00:02]} 11. O-O {[%emt 0:00:02]} O-O {[%emt 0:00:03]} 12. Bb2 {[%emt 0:00:11]} Qc7 {[%emt 0:00:16]} 13. Rfe1 {[%emt 0:00:52]} Rfd8 {[%emt 0:00:05]} 14. Rad1 {[%emt 0:00:16]} Be8 {[%emt 0:00:04]} 15. Nd4 {[%emt 0:01:01]} Ne5 {[%emt 0:00:24]} 16. f4 {[%emt 0:00:23]} Nc6 {[%emt 0:00:02]} 17. h3 {[%emt 0:00:59]} Nxd4 {[%emt 0:00:03]} 18. Qxd4 {[%emt 0:00:07]} d5 {[%emt 0:00:02]} 19. Kh2 {[%emt 0:02:07]} dxc4 {[%emt 0:00:13]} 20. Qxc4 {[%emt 0:00:38]} Qxc4 {[%emt 0:00:38]} 21. bxc4 {[%emt 0:00:01]} Rxc4 {[%emt 0:00:03]} 22. Rxd8 {[%emt 0:00:46]} Bxd8 {[%emt 0:00:01]} 23. e5 {[%emt 0:00:36]} Nd5 {[%emt 0:00:08]} 24. Rd1 {[%emt 0:01:51]} Be7 {[%emt 0:00:58]} 25. Nxd5 {[%emt 0:01:43]} exd5 {[%emt 0:00:03]} 26. Rd2 {[%emt 0:00:51]} Bc6 {[%emt 0:00:09]} 27. f5 {[%emt 0:01:05]} Bb4 {[%emt 0:00:08]} 28. Re2 {[%emt 0:00:16]} d4 {[%emt 0:00:42]} 29. Bf1 {[%emt 0:00:42]} d3 {[%emt 0:00:22]} 30. Rf2 {[%emt 0:00:21]} Rc2 {[%emt 0:00:17]} 31. Rxc2 {[%emt 0:00:11]} dxc2 {[%emt 0:00:06]} 32. Bd3 {[%emt 0:00:00]} Bc3 {[%emt 0:00:06]} 33. Bc1 {[%emt 0:00:04]} Bd5 {[%emt 0:00:17]} 34. Bxc2 {[%emt 0:00:08]} Bxe5 {[%emt 0:00:12]} 35. a4 {[%emt 0:00:13]} b5 {[%emt 0:00:01]} 36. a5 {[%emt 0:00:56]} Bc3 {[%emt 0:00:03]} 37. Kg1 {[%emt 0:00:15]} Bxa5 {[%emt 0:00:02]} 38. Kf2 {[%emt 0:00:01]} Bb6+ {[%emt 0:00:04]} 39. Ke2 {[%emt 0:00:06]} a5 {[%emt 0:00:06]} 40. Bd3 {[%emt 0:00:14]} b4 {[%emt 0:00:02]} 41. Bb5 {[%emt 0:00:01]} Bb3 {[%emt 0:00:09]} 42. Kd3 {[%emt 0:00:24]} a4 {[%emt 0:00:50]} 43. Bb2 {[%emt 0:00:41]} Bd8 {[%emt 0:00:23]} 44. Bc4 {[%emt 0:00:14]} Bxc4+ {[%emt 0:00:08]} 45. Kxc4 {[%emt 0:00:01]} a3 {[%emt 0:00:02]} 0-1

[Event "RUS-chT Rapid Men 2018"]
[Site "Sochi"]
[Date "2018.10.08"]
[Round "5"]
[White "Maletin, Pavel"]
[Black "Shcherbakov, Ruslan"]
[Result "1-0"]
[ECO "A15"]
[WhiteElo "2586"]
[BlackElo "2516"]
[Annotator "ChessBase"]
[PlyCount "113"]
[EventDate "2018.10.05"]
[EventType "swiss"]
[EventCountry "RUS"]
[SourceTitle "playchess.com"]
[Source "ChessBase"]
[SourceQuality "1"]
[TimeControl "900+10"]

1. c4 {[%emt 0:00:00]} Nf6 {[%emt 0:00:00]} 2. g3 {[%emt 0:00:00]} e5 {[%emt 0:00:21]} 3. Bg2 {[%emt 0:00:00]} c6 {[%emt 0:00:01]} 4. Nf3 {[%emt 0:00:00]} e4 {[%emt 0:00:29]} 5. Nd4 {[%emt 0:00:02]} d5 {[%emt 0:00:26]} 6. d3 {[%emt 0:00:02]} Bc5 {[%emt 0:02:44]} 7. Nb3 {[%emt 0:00:02]} Bb4+ {[%emt 0:00:26]} 8. Bd2 {[%emt 0:00:02]} Bxd2+ {[%emt 0:00:30]} 9. Qxd2 {[%emt 0:00:15]} dxc4 {[%emt 0:00:47]} 10. dxc4 {[%emt 0:00:03]} Qxd2+ {[%emt 0:00:26]} 11. N3xd2 {[%emt 0:00:13]} e3 {[%emt 0:00:20]} 12. fxe3 {[%emt 0:00:12]} O-O {[%emt 0:00:17]} 13. Nc3 {[%emt 0:00:39]} Nbd7 {[%emt 0:00:50]} 14. h3 {[%emt 0:01:30]} Re8 {[%emt 0:01:54]} 15. Kf2 {[%emt 0:00:04]} Ne5 {[%emt 0:00:21]} 16. b3 {[%emt 0:00:14]} Bf5 {[%emt 0:00:22]} 17. Rac1 {[%emt 0:01:53]} Rad8 {[%emt 0:00:14]} 18. Rhd1 {[%emt 0:01:00]} Neg4+ {[%emt 0:00:42]} 19. hxg4 {[%emt 0:00:04]} Nxg4+ {[%emt 0:00:01]} 20. Ke1 {[%emt 0:00:14]} Nxe3 {[%emt 0:00:09]} 21. Bf3 {[%emt 0:00:07]} Bc2 {[%emt 0:01:49]} 22. Nf1 {[%emt 0:00:32]} Bxd1 {[%emt 0:00:41]} 23. Nxe3 {[%emt 0:00:06]} Rxe3 {[%emt 0:00:08]} 24. Nxd1 {[%emt 0:00:19]} Re7 {[%emt 0:00:10]} 25. Nc3 {[%emt 0:01:14]} Rd3 {[%emt 0:00:30]} 26. Kf2 {[%emt 0:00:49]} Rd2 {[%emt 0:00:02]} 27. b4 {[%emt 0:00:43]} a6 {[%emt 0:00:49]} 28. b5 {[%emt 0:02:56]} cxb5 {[%emt 0:00:31]} 29. cxb5 {[%emt 0:00:07]} axb5 {[%emt 0:00:22]} 30. Nxb5 {[%emt 0:00:08]} g6 {[%emt 0:00:11]} 31. a4 {[%emt 0:00:24]} Ra2 {[%emt 0:00:11]} 32. Rc4 {[%emt 0:00:08]} Kg7 {[%emt 0:00:02]} 33. Rb4 {[%emt 0:00:12]} Rd7 {[%emt 0:01:10]} 34. Nd4 {[%emt 0:00:04]} b6 {[%emt 0:00:22]} 35. g4 {[%emt 0:01:23]} Rd6 {[%emt 0:00:25]} 36. Nb5 {[%emt 0:00:04]} Rdd2 {[%emt 0:00:04]} 37. Nd4 {[%emt 0:00:44]} Rab2 {[%emt 0:00:08]} 38. Rc4 {[%emt 0:00:01]} Rd1 {[%emt 0:00:22]} 39. Ke3 {[%emt 0:01:42]} Ra1 {[%emt 0:00:07]} 40. Bc6 {[%emt 0:00:04]} Kf6 {[%emt 0:00:07]} 41. Bb5 {[%emt 0:00:10]} Ra3+ {[%emt 0:00:17]} 42. Kf2 {[%emt 0:00:08]} h5 {[%emt 0:00:15]} 43. gxh5 {[%emt 0:00:09]} gxh5 {[%emt 0:00:01]} 44. Rc6+ {[%emt 0:00:02]} Kg5 {[%emt 0:00:13]} 45. Nf3+ {[%emt 0:00:02]} Kg4 {[%emt 0:00:03]} 46. Rf6 {[%emt 0:00:23]} h4 {[%emt 0:00:23]} 47. Rxf7 {[%emt 0:00:26]} Rb4 {[%emt 0:00:24]} 48. Bd7+ {[%emt 0:00:20]} Kh5 {[%emt 0:00:01]} 49. Bf5 {[%emt 0:00:02]} Rxf3+ {[%emt 0:00:11]} 50. Kxf3 {[%emt 0:00:08]} Rxa4 51. Rg7 {[%emt 0:00:06]} Ra1 {[%emt 0:00:24]} 52. Kf2 {[%emt 0:00:55]} b5 {[%emt 0:00:06]} 53. Rb7 {[%emt 0:00:10]} Ra5 {[%emt 0:00:30]} 54. Bd3 {[%emt 0:00:02]} Kg4 {[%emt 0:00:04]} 55. Rxb5 {[%emt 0:00:15]} Ra3 {[%emt 0:00:27]} 56. Rb4+ {[%emt 0:00:12]} Kg5 {[%emt 0:00:05]} 57. Kf3 {[%emt 0:00:03]} 1-0

[Event "RUS-chT Rapid Men 2018"]
[Site "Sochi"]
[Date "2018.10.08"]
[Round "5"]
[White "Iljiushenok, Ilia"]
[Black "Timofeev, Artyom"]
[Result "0-1"]
[ECO "B23"]
[WhiteElo "2539"]
[BlackElo "2580"]
[Annotator "ChessBase"]
[PlyCount "126"]
[EventDate "2018.10.05"]
[EventType "swiss"]
[EventCountry "RUS"]
[SourceTitle "playchess.com"]
[Source "ChessBase"]
[SourceQuality "1"]
[TimeControl "900+10"]

1. e4 {[%emt 0:00:00]} c5 {[%emt 0:00:00]} 2. Nc3 {[%emt 0:00:00]} d6 {[%emt 0:00:00]} 3. d4 {[%emt 0:00:00]} cxd4 {[%emt 0:00:03]} 4. Qxd4 {[%emt 0:00:00]} Nc6 {[%emt 0:00:06]} 5. Qd2 {[%emt 0:00:00]} g6 {[%emt 0:02:30]} 6. b3 {[%emt 0:00:00]} Bh6 {[%emt 0:00:02]} 7. f4 {[%emt 0:00:00]} Nf6 {[%emt 0:00:52]} 8. Bb2 {[%emt 0:00:01]} Qa5 {[%emt 0:00:27]} 9. O-O-O {[%emt 0:01:07]} Bg4 {[%emt 0:00:02]} 10. Be2 {[%emt 0:01:39]} Bxe2 {[%emt 0:00:08]} 11. Ngxe2 {[%emt 0:00:02]} O-O-O {[%emt 0:00:03]} 12. Kb1 {[%emt 0:02:28]} Bg7 {[%emt 0:00:49]} 13. Rhe1 {[%emt 0:00:36]} Kb8 {[%emt 0:00:14]} 14. Ng1 {[%emt 0:01:02]} Nd7 {[%emt 0:00:37]} 15. Nf3 {[%emt 0:00:31]} Rhf8 {[%emt 0:00:19]} 16. a3 {[%emt 0:00:52]} Bxc3 {[%emt 0:00:06]} 17. Qxc3 {[%emt 0:00:03]} Qxc3 {[%emt 0:00:02]} 18. Bxc3 {[%emt 0:00:01]} f6 {[%emt 0:00:17]} 19. Re3 {[%emt 0:01:26]} h5 {[%emt 0:00:54]} 20. Kb2 {[%emt 0:01:02]} a6 {[%emt 0:01:34]} 21. g3 {[%emt 0:00:02]} Nc5 {[%emt 0:00:47]} 22. Re2 {[%emt 0:01:24]} Kc8 {[%emt 0:00:20]} 23. Be1 {[%emt 0:01:22]} f5 {[%emt 0:02:17]} 24. exf5 {[%emt 0:00:53]} gxf5 {[%emt 0:00:04]} 25. Ng5 {[%emt 0:00:01]} Rde8 {[%emt 0:01:33]} 26. Bf2 {[%emt 0:00:13]} Nd7 {[%emt 0:00:02]} 27. c4 {[%emt 0:00:35]} e5 {[%emt 0:00:22]} 28. Rxd6 {[%emt 0:00:30]} exf4 {[%emt 0:00:02]} 29. Rde6 {[%emt 0:00:13]} Rxe6 {[%emt 0:00:26]} 30. Nxe6 {[%emt 0:00:01]} f3 {[%emt 0:00:07]} 31. Nxf8 {[%emt 0:03:31]} fxe2 {[%emt 0:00:02]} 32. Ne6 {[%emt 0:00:05]} Nce5 {[%emt 0:00:52]} 33. Nf4 {[%emt 0:00:03]} Nc5 {[%emt 0:00:02]} 34. Kc2 {[%emt 0:00:04]} Ne4 {[%emt 0:00:03]} 35. Be1 {[%emt 0:00:18]} Nf3 {[%emt 0:00:02]} 36. Ng2 {[%emt 0:00:19]} Nxh2 {[%emt 0:00:32]} 37. Kd3 {[%emt 0:00:01]} Nf3 {[%emt 0:00:02]} 38. Kxe2 {[%emt 0:00:17]} Nxe1 {[%emt 0:00:03]} 39. Nxe1 {[%emt 0:00:30]} Nxg3+ {[%emt 0:00:03]} 40. Kf3 {[%emt 0:00:03]} Ne4 {[%emt 0:00:06]} 41. Kf4 {[%emt 0:00:01]} Nd2 {[%emt 0:00:03]} 42. Kxf5 {[%emt 0:00:09]} Nxb3 {[%emt 0:00:02]} 43. Nf3 {[%emt 0:00:24]} Kc7 {[%emt 0:00:52]} 44. Kg5 {[%emt 0:00:14]} Kd6 {[%emt 0:00:12]} 45. Kxh5 {[%emt 0:00:03]} Na5 {[%emt 0:00:01]} 46. Kg4 {[%emt 0:00:18]} Nxc4 {[%emt 0:00:04]} 47. a4 {[%emt 0:00:01]} Nb2 {[%emt 0:00:06]} 48. Kf4 {[%emt 0:00:04]} Nxa4 {[%emt 0:00:01]} 49. Ke4 {[%emt 0:00:02]} b5 {[%emt 0:00:06]} 50. Kd4 {[%emt 0:00:03]} Nc5 {[%emt 0:00:02]} 51. Nd2 {[%emt 0:00:04]} Kc6 {[%emt 0:00:06]} 52. Nf3 {[%emt 0:00:07]} a5 {[%emt 0:00:25]} 53. Ne5+ {[%emt 0:00:10]} Kb6 {[%emt 0:00:01]} 54. Kc3 {[%emt 0:00:01]} Ne4+ {[%emt 0:00:08]} 55. Kb3 {[%emt 0:00:03]} Kc5 {[%emt 0:00:11]} 56. Ka3 {[%emt 0:00:18]} Nd6 {[%emt 0:00:18]} 57. Nd3+ {[%emt 0:00:31]} Kd4 {[%emt 0:00:07]} 58. Nf4 {[%emt 0:00:03]} Kc4 {[%emt 0:00:07]} 59. Ng6 {[%emt 0:00:03]} Kc3 {[%emt 0:00:05]} 60. Nf4 {[%emt 0:00:04]} Nc4+ {[%emt 0:00:05]} 61. Ka2 {[%emt 0:00:01]} b4 {[%emt 0:00:11]} 62. Ne2+ {[%emt 0:00:03]} Kd3 {[%emt 0:00:07]} 63. Nf4+ {[%emt 0:00:01]} Kc2 {[%emt 0:00:03]} 0-1

[Event "RUS-chT Rapid Men 2018"]
[Site "Sochi"]
[Date "2018.10.08"]
[Round "5"]
[White "Kozionov, Kirill"]
[Black "Nechaev, Oleg"]
[Result "1-0"]
[ECO "A57"]
[WhiteElo "2458"]
[BlackElo "2400"]
[Annotator "ChessBase"]
[PlyCount "87"]
[EventDate "2018.10.05"]
[EventType "swiss"]
[EventCountry "RUS"]
[SourceTitle "playchess.com"]
[Source "ChessBase"]
[SourceQuality "1"]
[TimeControl "900+10"]

1. d4 {[%emt 0:00:00]} Nf6 {[%emt 0:00:00]} 2. c4 {[%emt 0:00:00]} c5 {[%emt 0:00:00]} 3. d5 {[%emt 0:00:00]} b5 {[%emt 0:00:00]} 4. cxb5 {[%emt 0:00:00]} a6 {[%emt 0:00:00]} 5. b6 {[%emt 0:00:00]} g6 {[%emt 0:00:00]} 6. Nc3 {[%emt 0:00:00]} Bg7 {[%emt 0:00:01]} 7. e4 {[%emt 0:00:00]} O-O {[%emt 0:00:02]} 8. Nf3 {[%emt 0:00:02]} d6 {[%emt 0:00:02]} 9. Be2 {[%emt 0:00:41]} Nbd7 {[%emt 0:00:03]} 10. a4 {[%emt 0:00:01]} a5 {[%emt 0:00:01]} 11. O-O {[%emt 0:00:17]} Nxb6 {[%emt 0:00:03]} 12. Bf4 {[%emt 0:00:04]} Ba6 {[%emt 0:00:11]} 13. Rc1 {[%emt 0:00:36]} Qd7 {[%emt 0:01:34]} 14. Bxa6 {[%emt 0:02:44]} Rxa6 {[%emt 0:00:02]} 15. b3 {[%emt 0:00:47]} Ne8 {[%emt 0:00:13]} 16. Re1 {[%emt 0:01:42]} Nc7 {[%emt 0:00:07]} 17. h3 {[%emt 0:00:47]} Rb8 {[%emt 0:00:18]} 18. e5 {[%emt 0:01:13]} Nc8 {[%emt 0:00:41]} 19. Ne4 {[%emt 0:02:10]} Qf5 {[%emt 0:03:50]} 20. Bh2 {[%emt 0:01:14]} Rab6 {[%emt 0:03:58]} 21. Rc3 {[%emt 0:03:09]} Rb4 {[%emt 0:02:41]} 22. g4 {[%emt 0:00:17]} Qd7 {[%emt 0:00:06]} 23. Kg2 {[%emt 0:00:53]} f5 {[%emt 0:01:26]} 24. gxf5 {[%emt 0:00:50]} Qxf5 {[%emt 0:00:10]} 25. Rce3 {[%emt 0:00:35]} dxe5 {[%emt 0:01:22]} 26. Nxc5 {[%emt 0:00:33]} Nd6 {[%emt 0:00:01]} 27. Bxe5 {[%emt 0:00:14]} Bh6 {[%emt 0:00:33]} 28. Rd3 {[%emt 0:00:30]} Rf8 {[%emt 0:00:06]} 29. Bg3 {[%emt 0:00:10]} Bf4 {[%emt 0:01:10]} 30. Rxe7 {[%emt 0:00:08]} Bxg3 {[%emt 0:00:02]} 31. fxg3 {[%emt 0:00:05]} Ne4 {[%emt 0:00:24]} 32. Rxc7 {[%emt 0:00:14]} Nxg3 {[%emt 0:00:28]} 33. Ne6 {[%emt 0:00:19]} Nh5 {[%emt 0:00:07]} 34. Rd4 {[%emt 0:00:13]} Rxd4 {[%emt 0:00:11]} 35. Nexd4 {[%emt 0:00:04]} Nf4+ {[%emt 0:00:04]} 36. Kg1 {[%emt 0:00:07]} Qxh3 {[%emt 0:00:09]} 37. Qf1 {[%emt 0:00:19]} Qg3+ {[%emt 0:00:11]} 38. Kh1 {[%emt 0:00:01]} Nh3 {[%emt 0:00:11]} 39. Rc2 {[%emt 0:00:02]} Ng5 {[%emt 0:00:10]} 40. Qg2 {[%emt 0:00:22]} Qf4 {[%emt 0:00:35]} 41. Qxg5 {[%emt 0:00:07]} Qe4 {[%emt 0:00:01]} 42. Qe5 {[%emt 0:00:16]} Qd3 {[%emt 0:00:07]} 43. Qe6+ {[%emt 0:00:11]} Kg7 {[%emt 0:00:01]} 44. Qe2 {[%emt 0:00:08]} 1-0